[Event "Early-Titled-Tuesday-Blitz-November-28-2023"]
[Site "Chess.com"]
[Date "2023.11.28"]
[Round "2"]
[White "jlf287"]
[Black "NowInChess"]
[Result "0-1"]
[WhiteElo "2425"]
[BlackElo "2178"]
[TimeControl "180+1"]
[EndTime "8:18:18 PST"]
[Termination "NowInChess won by checkmate"]

1. d4 {[%clk 0:03:00.3]} 1... Nf6 {[%clk 0:02:59.5]} 2. Bf4 {[%clk 0:03:00]}
2... g6 {[%clk 0:02:58]} 3. e3 {[%clk 0:03:00.3]} 3... Bg7 {[%clk 0:02:58.2]} 4.
h3 {[%clk 0:03:00.9]} 4... O-O {[%clk 0:02:58.2]} 5. Nf3 {[%clk 0:03:01.2]} 5...
d6 {[%clk 0:02:58.3]} 6. Be2 {[%clk 0:03:01.4]} 6... c5 {[%clk 0:02:57.8]} 7.
O-O {[%clk 0:03:01.3]} 7... b6 {[%clk 0:02:38.4]} 8. Nbd2 {[%clk 0:03:00.1]}
8... Bb7 {[%clk 0:02:38]} 9. c3 {[%clk 0:03:00.2]} 9... Nbd7 {[%clk 0:02:36.5]}
10. a4 {[%clk 0:02:59.7]} 10... Re8 {[%clk 0:02:09.7]} 11. Bg3 {[%clk
0:02:55.3]} 11... e5 {[%clk 0:02:03.5]} 12. a5 {[%clk 0:02:54.1]} 12... Nh5
{[%clk 0:01:48.3]} 13. Bh4 {[%clk 0:02:34.8]} 13... Bf6 {[%clk 0:01:45.5]} 14.
Bxf6 {[%clk 0:02:32.7]} 14... Nhxf6 {[%clk 0:01:38.2]} 15. a6 {[%clk 0:02:32.5]}
15... Bxf3 {[%clk 0:01:32.6]} 16. Bxf3 {[%clk 0:02:32.1]} 16... e4 {[%clk
0:01:31.8]} 17. Be2 {[%clk 0:02:32.5]} 17... d5 {[%clk 0:01:30.9]} 18. Bb5
{[%clk 0:02:25.4]} 18... Rc8 {[%clk 0:01:24.3]} 19. b4 {[%clk 0:02:14.8]} 19...
c4 {[%clk 0:01:16]} 20. Qa4 {[%clk 0:02:08.8]} 20... Qe7 {[%clk 0:01:08.4]} 21.
Bc6 {[%clk 0:01:32.5]} 21... Rcd8 {[%clk 0:01:02.4]} 22. Qb5 {[%clk 0:01:27.3]}
22... Qe6 {[%clk 0:01:00.7]} 23. f4 {[%clk 0:01:11.8]} 23... Rf8 {[%clk
0:00:55.4]} 24. g4 {[%clk 0:00:58.5]} 24... h5 {[%clk 0:00:49.3]} 25. f5 {[%clk
0:00:51.1]} 25... Qd6 {[%clk 0:00:41.2]} 26. Kg2 {[%clk 0:00:33.5]} 26... hxg4
{[%clk 0:00:37.2]} 27. hxg4 {[%clk 0:00:30.4]} 27... Nxg4 {[%clk 0:00:35.7]} 28.
Rh1 {[%clk 0:00:25.9]} 28... Nxe3+ {[%clk 0:00:32.4]} 29. Kf2 {[%clk 0:00:20.4]}
29... Qf4+ {[%clk 0:00:31.6]} 30. Ke2 {[%clk 0:00:20.5]} 30... Nxf5 {[%clk
0:00:28.7]} 31. Rag1 {[%clk 0:00:16.8]} 31... Ng3+ {[%clk 0:00:21.3]} 32. Kd1
{[%clk 0:00:15]} 32... Nxh1 {[%clk 0:00:20.7]} 33. Rxh1 {[%clk 0:00:11.8]} 33...
e3 {[%clk 0:00:21]} 34. Bxd7 {[%clk 0:00:11.5]} 34... exd2 {[%clk 0:00:19.8]}
35. Qxd5 {[%clk 0:00:10.4]} 35... Rxd7 {[%clk 0:00:18.5]} 36. Qg2 {[%clk
0:00:08.8]} 36... Re8 {[%clk 0:00:17.3]} 37. Qh3 {[%clk 0:00:07.7]} 37... Re1+
{[%clk 0:00:16.6]} 38. Rxe1 {[%clk 0:00:08.1]} 38... dxe1=Q+ {[%clk 0:00:17.1]}
39. Kxe1 {[%clk 0:00:09]} 39... Qe4+ {[%clk 0:00:16.4]} 40. Kd1 {[%clk 0:00:09]}
40... Re7 {[%clk 0:00:17.1]} 41. Qc8+ {[%clk 0:00:06.8]} 41... Kg7 {[%clk
0:00:16.6]} 42. Qh3 {[%clk 0:00:07.7]} 42... Qd3+ {[%clk 0:00:16.3]} 43. Qxd3
{[%clk 0:00:07.3]} 43... cxd3 {[%clk 0:00:17.2]} 44. Kd2 {[%clk 0:00:08.2]}
44... g5 {[%clk 0:00:17.4]} 45. Kxd3 {[%clk 0:00:09.1]} 45... g4 {[%clk
0:00:18]} 46. c4 {[%clk 0:00:09.7]} 46... g3 {[%clk 0:00:18.4]} 47. c5 {[%clk
0:00:10.4]} 47... bxc5 {[%clk 0:00:18.2]} 48. dxc5 {[%clk 0:00:10.7]} 48... g2
{[%clk 0:00:18.6]} 49. Kc4 {[%clk 0:00:10.8]} 49... g1=Q {[%clk 0:00:18.8]} 50.
Kb5 {[%clk 0:00:11.3]} 50... Qf1+ {[%clk 0:00:17.8]} 51. Ka5 {[%clk 0:00:11.7]}
51... Qc4 {[%clk 0:00:16.8]} 52. b5 {[%clk 0:00:08.4]} 52... Qxc5 {[%clk
0:00:16.5]} 53. Ka4 {[%clk 0:00:08.9]} 53... Re4+ {[%clk 0:00:16.8]} 54. Ka5
{[%clk 0:00:08]} 54... Qa3# {[%clk 0:00:16.2]} 0-1

[Event "Early-Titled-Tuesday-Blitz-November-28-2023"]
[Site "Chess.com"]
[Date "2023.11.28"]
[Round "2"]
[White "Ramla2020"]
[Black "alexrustemov"]
[Result "0-1"]
[WhiteElo "2563"]
[BlackElo "2862"]
[TimeControl "180+1"]
[EndTime "8:18:19 PST"]
[Termination "alexrustemov won by resignation"]

1. c4 {[%clk 0:03:00.7]} 1... c5 {[%clk 0:02:59.9]} 2. g3 {[%clk 0:03:00.3]}
2... g6 {[%clk 0:03:00.2]} 3. Bg2 {[%clk 0:03:00.3]} 3... Bg7 {[%clk 0:03:00.8]}
4. Nc3 {[%clk 0:03:01.2]} 4... Nc6 {[%clk 0:03:01.1]} 5. e3 {[%clk 0:03:02.1]}
5... Bxc3 {[%clk 0:02:59.8]} 6. bxc3 {[%clk 0:03:00.9]} 6... b6 {[%clk
0:02:58.6]} 7. Ne2 {[%clk 0:02:58.2]} 7... Bb7 {[%clk 0:02:58.5]} 8. O-O {[%clk
0:02:53.8]} 8... d6 {[%clk 0:02:58.4]} 9. d3 {[%clk 0:02:52.1]} 9... f5 {[%clk
0:02:53.5]} 10. Nf4 {[%clk 0:02:48.7]} 10... Nf6 {[%clk 0:02:50.2]} 11. Nd5
{[%clk 0:02:34.3]} 11... O-O {[%clk 0:02:28.9]} 12. d4 {[%clk 0:02:33.4]} 12...
Na5 {[%clk 0:02:26.5]} 13. Qe2 {[%clk 0:02:24.1]} 13... e6 {[%clk 0:02:22.4]}
14. Nxf6+ {[%clk 0:02:21.8]} 14... Qxf6 {[%clk 0:02:23]} 15. Bxb7 {[%clk
0:02:19.5]} 15... Nxb7 {[%clk 0:02:23.2]} 16. d5 {[%clk 0:02:12.1]} 16... Rae8
{[%clk 0:02:19.5]} 17. Rd1 {[%clk 0:02:01.8]} 17... e5 {[%clk 0:02:08.9]} 18. e4
{[%clk 0:01:52.8]} 18... fxe4 {[%clk 0:02:08.1]} 19. Bh6 {[%clk 0:01:52.2]}
19... Qf3 {[%clk 0:02:06.3]} 20. Re1 {[%clk 0:01:47.8]} 20... Qxe2 {[%clk
0:02:02.6]} 21. Rxe2 {[%clk 0:01:48.7]} 21... Rf3 {[%clk 0:01:55.2]} 22. Rc1
{[%clk 0:01:48.3]} 22... Na5 {[%clk 0:01:53.4]} 23. Rxe4 {[%clk 0:01:47.3]}
23... Kf7 {[%clk 0:01:46.3]} 24. Kg2 {[%clk 0:01:46.3]} 24... Rf6 {[%clk
0:01:41.9]} 25. h4 {[%clk 0:01:39]} 25... Kg8 {[%clk 0:01:38.9]} 26. f4 {[%clk
0:01:36]} 26... Rf7 {[%clk 0:01:21.9]} 27. Rce1 {[%clk 0:01:34.3]} 27... Rd7
{[%clk 0:01:14.1]} 28. fxe5 {[%clk 0:01:26.7]} 28... Rxe5 {[%clk 0:01:14.3]} 29.
Rxe5 {[%clk 0:01:24.5]} 29... dxe5 {[%clk 0:01:15.2]} 30. Re4 {[%clk 0:01:24.1]}
30... Kf7 {[%clk 0:01:12.1]} 31. g4 {[%clk 0:01:15.4]} 31... Nb7 {[%clk
0:01:11.3]} 32. Rxe5 {[%clk 0:01:01.9]} 32... Nd6 {[%clk 0:01:11]} 33. Re2
{[%clk 0:01:02.4]} 33... Nxc4 {[%clk 0:01:10.4]} 34. Rf2+ {[%clk 0:01:02.4]}
34... Ke7 {[%clk 0:01:10.5]} 35. Bf8+ {[%clk 0:00:58.6]} 35... Ke8 {[%clk
0:01:09.9]} 36. Bh6 {[%clk 0:00:51.8]} 36... Rf7 {[%clk 0:01:04.6]} 37. Re2+
{[%clk 0:00:50.6]} 37... Kd7 {[%clk 0:01:03.7]} 38. Kg3 {[%clk 0:00:48]} 38...
Kd6 {[%clk 0:01:01.4]} 39. Bf4+ {[%clk 0:00:34.5]} 39... Kxd5 {[%clk 0:01:01]}
40. Re8 {[%clk 0:00:34.6]} 40... Rd7 {[%clk 0:00:56.8]} 41. h5 {[%clk
0:00:34.3]} 41... gxh5 {[%clk 0:00:54.9]} 42. gxh5 {[%clk 0:00:35.2]} 42... b5
{[%clk 0:00:53.4]} 43. h6 {[%clk 0:00:32.9]} 43... a5 {[%clk 0:00:52]} 44. Rg8
{[%clk 0:00:30.8]} 44... Ke6 {[%clk 0:00:43.9]} 45. Rc8 {[%clk 0:00:25.3]} 45...
Kd5 {[%clk 0:00:33.2]} 46. Rg8 {[%clk 0:00:25]} 46... b4 {[%clk 0:00:33.7]} 47.
cxb4 {[%clk 0:00:24.5]} 47... cxb4 {[%clk 0:00:33.2]} 48. Rg7 {[%clk 0:00:23.1]}
48... Ke6 {[%clk 0:00:33.4]} 49. Bc1 {[%clk 0:00:20.6]} 49... Rxg7+ {[%clk
0:00:32.1]} 50. hxg7 {[%clk 0:00:20.6]} 50... Kf7 {[%clk 0:00:33]} 51. Bh6
{[%clk 0:00:20.7]} 51... a4 {[%clk 0:00:30.7]} 52. Kf3 {[%clk 0:00:18.9]} 52...
b3 {[%clk 0:00:30.1]} 53. axb3 {[%clk 0:00:19.1]} 53... axb3 {[%clk 0:00:30.9]}
0-1

[Event "Early-Titled-Tuesday-Blitz-November-28-2023"]
[Site "Chess.com"]
[Date "2023.11.28"]
[Round "2"]
[White "vugarrasulov"]
[Black "Vesper2018"]
[Result "1-0"]
[WhiteElo "2921"]
[BlackElo "2599"]
[TimeControl "180+1"]
[EndTime "8:18:21 PST"]
[Termination "vugarrasulov won on time"]

1. e4 {[%clk 0:03:00.9]} 1... c5 {[%clk 0:02:59.8]} 2. Nf3 {[%clk 0:03:00.8]}
2... d6 {[%clk 0:02:59.7]} 3. c3 {[%clk 0:03:00.3]} 3... Nf6 {[%clk 0:02:58.8]}
4. Be2 {[%clk 0:03:01]} 4... Bd7 {[%clk 0:02:53.4]} 5. d3 {[%clk 0:02:57.4]}
5... g6 {[%clk 0:02:53.1]} 6. O-O {[%clk 0:02:57.3]} 6... Bg7 {[%clk 0:02:53.2]}
7. h3 {[%clk 0:02:57.8]} 7... O-O {[%clk 0:02:51.7]} 8. Re1 {[%clk 0:02:58.5]}
8... e5 {[%clk 0:02:46.3]} 9. a4 {[%clk 0:02:56.7]} 9... Nc6 {[%clk 0:02:38.6]}
10. Nbd2 {[%clk 0:02:56.4]} 10... d5 {[%clk 0:02:38.3]} 11. exd5 {[%clk
0:02:35.5]} 11... Nxd5 {[%clk 0:02:38]} 12. Nc4 {[%clk 0:02:29.7]} 12... Qc7
{[%clk 0:02:29.3]} 13. Bf1 {[%clk 0:02:27.2]} 13... Rad8 {[%clk 0:02:24.1]} 14.
Ng5 {[%clk 0:02:21.5]} 14... b6 {[%clk 0:02:07.9]} 15. a5 {[%clk 0:02:10.2]}
15... b5 {[%clk 0:02:01]} 16. Ne3 {[%clk 0:02:10.3]} 16... Nce7 {[%clk
0:01:35.2]} 17. Nxd5 {[%clk 0:01:55.4]} 17... Nxd5 {[%clk 0:01:35.3]} 18. Qf3
{[%clk 0:01:51.5]} 18... Bc6 {[%clk 0:01:30.8]} 19. Ne4 {[%clk 0:01:49.8]} 19...
f5 {[%clk 0:01:21.2]} 20. Nxc5 {[%clk 0:01:49.6]} 20... Qd6 {[%clk 0:01:20.9]}
21. Nb3 {[%clk 0:01:11.5]} 21... Nxc3 {[%clk 0:01:18.2]} 22. Qe3 {[%clk
0:01:10.7]} 22... Nd5 {[%clk 0:01:15.8]} 23. Qxa7 {[%clk 0:01:03.8]} 23... Nb4
{[%clk 0:01:15.1]} 24. Be3 {[%clk 0:00:58.7]} 24... Nc2 {[%clk 0:01:14.2]} 25.
Bc5 {[%clk 0:00:58.6]} 25... Qd5 {[%clk 0:01:11.3]} 26. Bxf8 {[%clk 0:00:57.9]}
26... Rxf8 {[%clk 0:01:09.8]} 27. Qc5 {[%clk 0:00:55.8]} 27... Qxb3 {[%clk
0:00:18.9]} 28. Qxc6 {[%clk 0:00:54.6]} 28... Nxe1 {[%clk 0:00:19.1]} 29. Rxe1
{[%clk 0:00:54.1]} 29... Qxb2 {[%clk 0:00:17.1]} 30. a6 {[%clk 0:00:53.3]} 30...
Qd4 {[%clk 0:00:13.2]} 31. Qxb5 {[%clk 0:00:51.9]} 31... Kh8 {[%clk 0:00:10.1]}
32. Rc1 {[%clk 0:00:48.9]} 32... e4 {[%clk 0:00:07.8]} 33. Qc5 {[%clk
0:00:43.9]} 33... Qxc5 {[%clk 0:00:06.7]} 34. Rxc5 {[%clk 0:00:44.8]} 34... Bd4
{[%clk 0:00:07.1]} 35. Rd5 {[%clk 0:00:42.1]} 35... Bb6 {[%clk 0:00:07.2]} 36.
Rd6 {[%clk 0:00:37.1]} 36... Bc5 {[%clk 0:00:07.3]} 37. Rc6 {[%clk 0:00:36.4]}
37... Bd4 {[%clk 0:00:07.6]} 38. Rc4 {[%clk 0:00:35.3]} 38... Ba7 {[%clk
0:00:07.6]} 39. Rc7 {[%clk 0:00:34.5]} 39... Bb6 {[%clk 0:00:08.1]} 40. Rb7
{[%clk 0:00:34.6]} 40... Bd4 {[%clk 0:00:08.2]} 41. Be2 {[%clk 0:00:32.6]} 41...
exd3 {[%clk 0:00:04.1]} 42. Bxd3 {[%clk 0:00:33.5]} 42... Rc8 {[%clk 0:00:03.9]}
43. Kf1 {[%clk 0:00:33.2]} 43... Rc1+ {[%clk 0:00:03.7]} 44. Ke2 {[%clk
0:00:33.2]} 44... Ra1 {[%clk 0:00:04]} 45. Bc4 {[%clk 0:00:31.4]} 45... Bc5
{[%clk 0:00:02.9]} 46. f4 {[%clk 0:00:30.7]} 46... h6 {[%clk 0:00:01.8]} 47. g4
{[%clk 0:00:30.9]} 47... Bd4 {[%clk 0:00:01]} 48. gxf5 {[%clk 0:00:25.6]} 48...
gxf5 {[%clk 0:00:01.3]} 49. h4 {[%clk 0:00:26.3]} 49... Bc5 {[%clk 0:00:01.3]}
50. h5 {[%clk 0:00:26.7]} 50... Bd4 {[%clk 0:00:01.6]} 51. Kd3 {[%clk
0:00:26.3]} 51... Bc5 {[%clk 0:00:01.9]} 52. Bb5 {[%clk 0:00:26.8]} 1-0

[Event "Early-Titled-Tuesday-Blitz-November-28-2023"]
[Site "Chess.com"]
[Date "2023.11.28"]
[Round "2"]
[White "LoveUMore"]
[Black "Laico"]
[Result "1-0"]
[WhiteElo "2551"]
[BlackElo "2336"]
[TimeControl "180+1"]
[EndTime "8:18:22 PST"]
[Termination "LoveUMore won on time"]

1. d4 {[%clk 0:03:00.9]} 1... e6 {[%clk 0:02:56.6]} 2. Nf3 {[%clk 0:03:00.2]}
2... f5 {[%clk 0:02:57.2]} 3. g3 {[%clk 0:02:59.9]} 3... b6 {[%clk 0:02:57.7]}
4. Bg2 {[%clk 0:03:00.5]} 4... Bb7 {[%clk 0:02:58.4]} 5. O-O {[%clk 0:03:00.9]}
5... Nf6 {[%clk 0:02:59.1]} 6. b3 {[%clk 0:03:01]} 6... Be7 {[%clk 0:02:59.6]}
7. Bb2 {[%clk 0:03:01.4]} 7... O-O {[%clk 0:03:00.4]} 8. Nbd2 {[%clk 0:03:01.8]}
8... Qe8 {[%clk 0:03:01.2]} 9. c4 {[%clk 0:03:01.3]} 9... Qh5 {[%clk 0:03:01.3]}
10. d5 {[%clk 0:02:56.5]} 10... exd5 {[%clk 0:03:01.2]} 11. Nh4 {[%clk
0:02:56.2]} 11... Ne4 {[%clk 0:03:00.1]} 12. cxd5 {[%clk 0:02:52.2]} 12... Bxh4
{[%clk 0:02:54.4]} 13. gxh4 {[%clk 0:02:40.7]} 13... Bxd5 {[%clk 0:02:44.1]} 14.
Nxe4 {[%clk 0:02:33.4]} 14... Bxe4 {[%clk 0:02:45]} 15. Bxe4 {[%clk 0:02:17.2]}
15... fxe4 {[%clk 0:02:45]} 16. Qd4 {[%clk 0:02:17.1]} 16... Qg4+ {[%clk
0:01:46.3]} 17. Kh1 {[%clk 0:02:15]} 17... Nc6 {[%clk 0:01:47]} 18. Qd5+ {[%clk
0:02:09.4]} 18... Qe6 {[%clk 0:01:47.3]} 19. Qxe6+ {[%clk 0:02:07.9]} 19... dxe6
{[%clk 0:01:48.2]} 20. Rac1 {[%clk 0:02:03.1]} 20... Nb4 {[%clk 0:01:42.2]} 21.
Rxc7 {[%clk 0:01:57.6]} 21... Rf7 {[%clk 0:01:42.9]} 22. Rc4 {[%clk 0:01:49.4]}
22... Nxa2 {[%clk 0:01:04.9]} 23. Rxe4 {[%clk 0:01:41]} 23... Rd8 {[%clk
0:00:55]} 24. Ra1 {[%clk 0:00:49.2]} 24... Rd2 {[%clk 0:00:37.1]} 25. Bd4 {[%clk
0:00:36.9]} 25... e5 {[%clk 0:00:25.6]} 26. Be3 {[%clk 0:00:32.5]} 26... Rxe2
{[%clk 0:00:25.7]} 27. Rxe5 {[%clk 0:00:31.1]} 27... a5 {[%clk 0:00:16.5]} 28.
Re8+ {[%clk 0:00:24.7]} 28... Rf8 {[%clk 0:00:16.2]} 29. Rxf8+ {[%clk
0:00:24.9]} 29... Kxf8 {[%clk 0:00:17.1]} 30. Bxb6 {[%clk 0:00:25.1]} 30... Rc2
{[%clk 0:00:05.8]} 31. Bxa5 {[%clk 0:00:23.5]} 31... Nc1 {[%clk 0:00:06.1]} 32.
b4 {[%clk 0:00:19.8]} 32... Nd3 {[%clk 0:00:06]} 33. Kg2 {[%clk 0:00:17.7]}
33... Rxf2+ {[%clk 0:00:05]} 34. Kg3 {[%clk 0:00:17.8]} 34... Rb2 {[%clk
0:00:05.1]} 35. Ra4 {[%clk 0:00:15]} 35... Kf7 {[%clk 0:00:03.6]} 36. Kf3 {[%clk
0:00:14.9]} 36... Ke6 {[%clk 0:00:04]} 37. Ke4 {[%clk 0:00:14.8]} 37... Rb3
{[%clk 0:00:03.4]} 38. Kd4 {[%clk 0:00:12.4]} 38... Nb2 {[%clk 0:00:02.5]} 39.
Ra1 {[%clk 0:00:11.3]} 39... Kd6 {[%clk 0:00:02.9]} 40. Rg1 {[%clk 0:00:10.2]}
40... g6 {[%clk 0:00:02.6]} 41. Rf1 {[%clk 0:00:09.9]} 41... Rd3+ {[%clk
0:00:01.7]} 42. Ke4 {[%clk 0:00:10]} 42... Rh3 {[%clk 0:00:01.5]} 43. Rf6+
{[%clk 0:00:09.3]} 43... Ke7 {[%clk 0:00:01.2]} 44. Rf2 {[%clk 0:00:09.5]} 44...
Rxh4+ {[%clk 0:00:01.2]} 45. Kd5 {[%clk 0:00:09.1]} 45... Na4 {[%clk 0:00:01.2]}
46. Re2+ {[%clk 0:00:08.8]} 46... Kd7 {[%clk 0:00:01.2]} 47. b5 {[%clk 0:00:09]}
1-0

[Event "Early-Titled-Tuesday-Blitz-November-28-2023"]
[Site "Chess.com"]
[Date "2023.11.28"]
[Round "2"]
[White "ChessBliss09"]
[Black "Caisachess"]
[Result "1-0"]
[WhiteElo "2027"]
[BlackElo "2408"]
[TimeControl "180+1"]
[EndTime "8:18:24 PST"]
[Termination "ChessBliss09 won by resignation"]

1. e4 {[%clk 0:03:00.9]} 1... e5 {[%clk 0:02:59.6]} 2. Nf3 {[%clk 0:03:00.6]}
2... Nc6 {[%clk 0:03:00]} 3. Bc4 {[%clk 0:03:00.4]} 3... Bc5 {[%clk 0:02:59.4]}
4. d3 {[%clk 0:02:59.6]} 4... Nf6 {[%clk 0:02:59.5]} 5. O-O {[%clk 0:02:59.7]}
5... d6 {[%clk 0:02:59.8]} 6. h3 {[%clk 0:02:57.4]} 6... a6 {[%clk 0:03:00.1]}
7. c3 {[%clk 0:02:56.6]} 7... h6 {[%clk 0:03:00.7]} 8. b4 {[%clk 0:02:56]} 8...
Ba7 {[%clk 0:03:00.5]} 9. Be3 {[%clk 0:02:54.9]} 9... g5 {[%clk 0:03:01]} 10.
Nbd2 {[%clk 0:02:45.7]} 10... g4 {[%clk 0:02:57.2]} 11. hxg4 {[%clk 0:02:44.6]}
11... Bxg4 {[%clk 0:02:58.1]} 12. Bxa7 {[%clk 0:02:35.6]} 12... Nxa7 {[%clk
0:02:55.6]} 13. d4 {[%clk 0:02:34.4]} 13... Nc6 {[%clk 0:02:55]} 14. dxe5 {[%clk
0:02:26.5]} 14... dxe5 {[%clk 0:02:53.6]} 15. Qb3 {[%clk 0:02:13.1]} 15... Qe7
{[%clk 0:02:53.2]} 16. b5 {[%clk 0:02:05.9]} 16... Na5 {[%clk 0:02:42.2]} 17.
Qa4 {[%clk 0:02:00.3]} 17... Nxc4 {[%clk 0:02:40.3]} 18. bxa6+ {[%clk
0:01:52.8]} 18... Bd7 {[%clk 0:02:35.8]} 19. Qxc4 {[%clk 0:01:50.7]} 19... Rxa6
{[%clk 0:02:28.9]} 20. Qxc7 {[%clk 0:01:46]} 20... Bc6 {[%clk 0:02:23.4]} 21.
Qb8+ {[%clk 0:01:38]} 21... Qd8 {[%clk 0:02:17.6]} 22. Qxe5+ {[%clk 0:01:37.7]}
22... Kf8 {[%clk 0:02:17.8]} 23. Qc5+ {[%clk 0:01:22.7]} 23... Qe7 {[%clk
0:02:15.4]} 24. Qxe7+ {[%clk 0:01:02.5]} 24... Kxe7 {[%clk 0:02:16.3]} 25. e5
{[%clk 0:00:59.9]} 25... Nd5 {[%clk 0:02:14.4]} 26. c4 {[%clk 0:00:59.4]} 26...
Nf4 {[%clk 0:02:14.1]} 27. g3 {[%clk 0:00:56.1]} 27... Rg8 {[%clk 0:02:10.6]}
28. Kh2 {[%clk 0:00:53.6]} 28... Nd3 {[%clk 0:02:02.2]} 29. Nd4 {[%clk
0:00:48.9]} 29... Bd7 {[%clk 0:01:53.4]} 30. Ne4 {[%clk 0:00:43.8]} 30... Nxe5
{[%clk 0:01:49.7]} 31. Nc5 {[%clk 0:00:40.3]} 31... Ng4+ {[%clk 0:01:15.2]} 32.
Kg1 {[%clk 0:00:33.2]} 32... Rb6 {[%clk 0:01:06.3]} 33. Rfe1+ {[%clk 0:00:31.3]}
33... Kd8 {[%clk 0:01:04.6]} 34. Rad1 {[%clk 0:00:25.7]} 34... Kc7 {[%clk
0:00:32.8]} 35. Re7 {[%clk 0:00:18.8]} 35... Rd8 {[%clk 0:00:27.4]} 36. Nxd7
{[%clk 0:00:09.6]} 36... Rxd7 {[%clk 0:00:26.8]} 37. Nb5+ {[%clk 0:00:09.8]}
37... Rxb5 {[%clk 0:00:26.8]} 38. Rdxd7+ {[%clk 0:00:09.1]} 38... Kb6 {[%clk
0:00:27.7]} 39. cxb5 {[%clk 0:00:08.4]} 39... Kxb5 {[%clk 0:00:28.6]} 40. Rxb7+
{[%clk 0:00:08.6]} 40... Kc5 {[%clk 0:00:29.5]} 41. Rxf7 {[%clk 0:00:08.7]}
41... Ne5 {[%clk 0:00:29.7]} 42. Rf5 {[%clk 0:00:07.8]} 42... Kd6 {[%clk
0:00:29.6]} 43. Rxe5 {[%clk 0:00:05.7]} 43... Kxe5 {[%clk 0:00:30.5]} 44. a4
{[%clk 0:00:05.9]} 44... Kd5 {[%clk 0:00:30.2]} 45. a5 {[%clk 0:00:06.8]} 45...
Kc6 {[%clk 0:00:30.9]} 46. a6 {[%clk 0:00:07.7]} 46... Kc5 {[%clk 0:00:31.7]}
47. Rh7 {[%clk 0:00:08.3]} 47... Kc4 {[%clk 0:00:32.6]} 48. a7 {[%clk
0:00:09.1]} 48... Kc5 {[%clk 0:00:33.2]} 49. a8=Q {[%clk 0:00:10]} 49... Kc4
{[%clk 0:00:33.5]} 50. Qc8+ {[%clk 0:00:09.9]} 50... Kd4 {[%clk 0:00:33.5]} 51.
Qd7+ {[%clk 0:00:10]} 51... Ke4 {[%clk 0:00:34.4]} 52. Re7+ {[%clk 0:00:09.9]}
1-0

[Event "Early-Titled-Tuesday-Blitz-November-28-2023"]
[Site "Chess.com"]
[Date "2023.11.28"]
[Round "2"]
[White "lluiss"]
[Black "Kovalyov_Eduard"]
[Result "1/2-1/2"]
[WhiteElo "2215"]
[BlackElo "2470"]
[TimeControl "180+1"]
[EndTime "8:18:25 PST"]
[Termination "Game drawn by repetition"]

1. Nf3 {[%clk 0:03:00.9]} 1... d5 {[%clk 0:02:57.8]} 2. d4 {[%clk 0:03:00]} 2...
Nf6 {[%clk 0:02:57.6]} 3. c4 {[%clk 0:02:59.4]} 3... e6 {[%clk 0:02:57.8]} 4.
cxd5 {[%clk 0:02:59]} 4... exd5 {[%clk 0:02:57.5]} 5. Nc3 {[%clk 0:02:59.5]}
5... c6 {[%clk 0:02:57.5]} 6. Qc2 {[%clk 0:02:58.5]} 6... Bd6 {[%clk 0:02:51.6]}
7. Bg5 {[%clk 0:02:57.7]} 7... Nbd7 {[%clk 0:02:51.7]} 8. e3 {[%clk 0:02:54.2]}
8... h6 {[%clk 0:02:51.8]} 9. Bh4 {[%clk 0:02:53.7]} 9... O-O {[%clk 0:02:51.2]}
10. Bd3 {[%clk 0:02:53.4]} 10... Re8 {[%clk 0:02:51.7]} 11. O-O {[%clk
0:02:51.5]} 11... Nf8 {[%clk 0:02:49.8]} 12. Bg3 {[%clk 0:02:48.4]} 12... Ne6
{[%clk 0:02:47.3]} 13. Rab1 {[%clk 0:02:28.9]} 13... Bxg3 {[%clk 0:02:42.5]} 14.
hxg3 {[%clk 0:02:28]} 14... Ng5 {[%clk 0:02:43.2]} 15. b4 {[%clk 0:02:04.9]}
15... b5 {[%clk 0:02:36.6]} 16. Ne2 {[%clk 0:02:02.4]} 16... Bd7 {[%clk
0:02:30.2]} 17. Ne5 {[%clk 0:02:00.1]} 17... Rc8 {[%clk 0:02:29]} 18. Rfc1
{[%clk 0:01:59.5]} 18... Nge4 {[%clk 0:02:27.5]} 19. Nf4 {[%clk 0:01:38.7]}
19... Nd6 {[%clk 0:02:25]} 20. a4 {[%clk 0:01:33.8]} 20... a6 {[%clk 0:02:23.6]}
21. axb5 {[%clk 0:01:26.7]} 21... axb5 {[%clk 0:02:23.3]} 22. Ra1 {[%clk
0:01:26.2]} 22... Nc4 {[%clk 0:02:21.5]} 23. Bxc4 {[%clk 0:01:26.6]} 23... dxc4
{[%clk 0:02:18.3]} 24. Ra7 {[%clk 0:01:16.8]} 24... Rc7 {[%clk 0:02:10.3]} 25.
Rca1 {[%clk 0:01:13.8]} 25... Nd5 {[%clk 0:02:01.7]} 26. Nxd5 {[%clk 0:01:13.1]}
26... cxd5 {[%clk 0:02:01.2]} 27. R1a5 {[%clk 0:00:50.5]} 27... f6 {[%clk
0:01:58]} 28. Ng6 {[%clk 0:00:37.8]} 28... Qb8 {[%clk 0:01:49]} 29. Rxc7 {[%clk
0:00:36.6]} 29... Qxc7 {[%clk 0:01:49.1]} 30. Nf4 {[%clk 0:00:37]} 30... Qc6
{[%clk 0:01:31.2]} 31. Qg6 {[%clk 0:00:36.6]} 31... Re7 {[%clk 0:01:22.6]} 32.
Qh5 {[%clk 0:00:17.6]} 32... Be6 {[%clk 0:01:10.1]} 33. Nxe6 {[%clk 0:00:11.3]}
33... Rxe6 {[%clk 0:00:31.2]} 34. Ra7 {[%clk 0:00:11]} 34... Qe8 {[%clk
0:00:11.9]} 35. Qxd5 {[%clk 0:00:09.9]} 35... Kh7 {[%clk 0:00:12.5]} 36. Rc7
{[%clk 0:00:08.8]} 36... Re7 {[%clk 0:00:10.5]} 37. Rc5 {[%clk 0:00:07.6]} 37...
Rd7 {[%clk 0:00:09.3]} 38. Qf5+ {[%clk 0:00:07.3]} 38... Kh8 {[%clk 0:00:08.1]}
39. Rxb5 {[%clk 0:00:08.2]} 39... Rc7 {[%clk 0:00:07.1]} 40. Rc5 {[%clk
0:00:08.2]} 40... Rxc5 {[%clk 0:00:06.4]} 41. bxc5 {[%clk 0:00:08.4]} 41... Qb5
{[%clk 0:00:05.4]} 42. Qc8+ {[%clk 0:00:06.2]} 42... Kh7 {[%clk 0:00:05.2]} 43.
Qf5+ {[%clk 0:00:06.1]} 43... Kh8 {[%clk 0:00:05.2]} 44. Qc2 {[%clk 0:00:06]}
44... Qb3 {[%clk 0:00:03.7]} 45. Qf5 {[%clk 0:00:05]} 45... c3 {[%clk 0:00:04]}
46. Qc8+ {[%clk 0:00:04.8]} 46... Kh7 {[%clk 0:00:03.9]} 47. Qf5+ {[%clk
0:00:04.9]} 47... Kh8 {[%clk 0:00:04.5]} 48. Qc8+ {[%clk 0:00:04.9]} 48... Kh7
{[%clk 0:00:05.2]} 49. Qf5+ {[%clk 0:00:05.2]} 49... Kh8 {[%clk 0:00:05.8]}
1/2-1/2